[Event "Italian-ch Women 2022"]
[Site "Cagliari"]
[Date "2022.11.20"]
[Round "4.4"]
[White "Martinelli, Valeria"]
[Black "Raccanello, Marianna"]
[Result "0-1"]
[ECO "A36"]
[WhiteElo "2008"]
[BlackElo "2062"]
[Annotator "TA"]
[PlyCount "72"]
[EventDate "2022.11.17"]
[EventType "tourn"]
[EventCountry "ITA"]
[SourceTitle "playchess.com"]
[Source "ChessBase"]
[SourceQuality "1"]
[TimeControl "40/6000+30:20/3000:900+30"]

{[%evp 19,72,46,48,43,49,53,30,36,80,0,83,22,89,39,34,35,57,46,49,-2,-2,-397,-392,-397,-397,-397,-397,-397,-270,-333,-341,-531,-529,-646,-669,-624,-658,-631,-620,-815,-580,-566,-418,-744,-735,-653,-608,-813,-818,-814,-799,-1058,-1047,-1047,-1044]} 1. c4 {[%emt 0:00:04]} c5 {[%emt 0:00:31]} 2. Nc3 {[%emt 0:00:06]} Nc6 {[%emt 0:00:06]} 3. g3 {[%emt 0:00:06]} g6 {[%emt 1:41:23]} 4. Bg2 {[%emt 0:00:09]} Bg7 {[%emt 0:00:00]} 5. e3 {[%emt 0:00:08]} e5 {[%emt 0:00:00]} 6. Nge2 {[%emt 0:00:09]} Nge7 {[%emt 0:00:00]} 7. O-O {[%emt 0:00:09]} d6 {[%emt 0:00:00]} 8. a3 {[%emt 0:00:23]} O-O {[%emt 0:00:00]} 9. b4 {[%emt 0:00:53]} cxb4 {[%emt 0:00:00]} 10. axb4 {[%emt 0:00:07]} Nxb4 {[%emt 0:00:00]} 11. Ba3 {[%emt 0:00:06] A36: Symmetrical English vs ...g6: 4 Bg2 Bg7.} Nec6 {[%emt 0:00:00]} 12. d4 {[%emt 0:00:19]} exd4 {[%emt 0:00:00] [#]} 13. Nxd4 $146 {[%emt 0:00:09] White has an edge.} ({Predecessor:} 13. exd4 Bg4 14. f3 Bf5 15. d5 Ne5 16. g4 Bc2 17. Qc1 Bd3 18. c5 dxc5 19. h3 Re8 20. Rd1 Bxe2 21. Nxe2 Ned3 22. Qd2 Bxa1 23. Rxa1 Qxd5 24. f4 Rxe2 {0-1 (24) Domogaev,S (2364)-Chulivska,V (2238) Vladimir 2008}) 13... Re8 {[%emt 0:00:00][%cal Bf8e8,Be8e7,Be7d7][%mdl 32] [#]} 14. Ncb5 {[%emt 0:15:14]} ({White should play} 14. Nxc6 $1 $16 Nxc6 15. Nb5) 14... Be6 {[%emt 0:00:00]} (14... a5 $11) 15. Rb1 {[%emt 0:07:51]} (15. Bxb4 $16 Nxb4 16. Nxe6 (16. Rxa7 Bxc4 17. Rxa8 Qxa8 $11) (16. Bxb7 Bh3 $14) 16... Rxe6 17. Rxa7 Rxa7 18. Nxa7) 15... a5 {[%emt 0:00:00]} (15... Nxd4 $11 {keeps the balance.} 16. Nxd4 Bxd4) 16. Nxc6 {[%emt 0:04:04]} (16. Nxe6 $16 Rxe6 17. Qd2) 16... bxc6 $14 {[%emt 0:00:00]} 17. Nxd6 {[%emt 0:03:04]} (17. Qxd6 $2 cxb5 18. Qxd8 Raxd8 $19) 17... Re7 {[%emt 0:00:00]} 18. Bxb4 {[%emt 0:04:57]} axb4 {[%emt 0:00:00]} 19. Bxc6 {[%emt 0:10:26]} (19. Rxb4 $14 c5 20. Rb1) 19... Rb8 $1 $11 {[%emt 0:00:00] White must now prevent ...Qc7.} ({Much less strong is} 19... Ra6 {[#]} 20. Nf5 $1 {[%mdl 512]} Qc7 21. Nxe7+ Qxe7 22. Bd5 $16) 20. Kg2 $2 {[%emt 0:35:08][%mdl 8192] Now White is beyond hope.} (20. Nb5 $1 $11) 20... Qc7 $19 {[%emt 0:00:00]} 21. Bf3 {[%emt 0:06:25]} Rd7 {[%emt 0:00:00]} ({And not} 21... Bxc4 22. Nxc4 Qxc4 23. Bd5 $11) 22. c5 {[%emt 0:00:04]} Qxc5 {[%emt 0:00:00]} 23. Ne4 {[%emt 0:00:04]} Qa5 {[%emt 0:00:00]} ({Avoid the trap} 23... Qf5 $2 24. Qa4 b3 25. Rfc1 $19) 24. Qe2 {[%emt 0:15:50]} b3 {[%emt 0:00:00] aiming for ...b2.} 25. Rb2 {[%emt 0:01:19]} (25. Rfc1 $142 b2 26. Rc2) 25... h6 {[%emt 0:00:00][%cal Of7f5] ...f5! is the strong threat.} 26. Rfb1 {[%emt 0:00:33]} f5 {[%emt 0:00:00][%cal Og7b2]} 27. Nd2 {[%emt 0:01:57][%cal Rd2b3]} Bxb2 {[%emt 0:00:00]} 28. Rxb2 {[%emt 0:00:01]} Qc3 {[%emt 0:00:00] Against e4} 29. Nb1 {[%emt 0:01:01]} Qd3 {[%emt 0:01:02]} 30. Qe1 {[%emt 0:01:27]} Ra7 {[%emt 0:00:50]} 31. Be2 {[%emt 0:02:03]} (31. Rd2 $142 Qb5 32. e4) 31... Qd5+ {[%emt 0:00:14] Black is clearly winning.} 32. Bf3 {[%emt 0:00:08]} Qe5 {[%emt 0:01:06]} 33. Qc3 {[%emt 0:00:58]} Qxc3 {[%emt 0:00:24]} 34. Nxc3 {[%emt 0:00:01]} Rc7 {[%emt 0:00:39]} 35. Bd5 {[%emt 0:01:38]} Bxd5+ {[%emt 0:00:14]} 36. Nxd5 {[%emt 0:00:01]} Rc2 {[%emt 0:00:15] Weighted Error Value: White=1.01/Black=0.34} 0-1

[Event "Italian-ch Women 2022"]
[Site "Cagliari"]
[Date "2022.11.21"]
[Round "5.1"]
[White "Raccanello, Marianna"]
[Black "Zimina, Olga"]
[Result "0-1"]
[ECO "C55"]
[WhiteElo "2062"]
[BlackElo "2283"]
[Annotator "TA"]
[PlyCount "88"]
[EventDate "2022.11.17"]
[EventType "tourn"]
[EventCountry "ITA"]
[SourceTitle "playchess.com"]
[Source "ChessBase"]
[SourceQuality "1"]
[TimeControl "40/6000+30:20/3000:900+30"]

{[%evp 10,88,34,33,43,36,41,20,43,27,30,22,20,9,20,-37,-36,-45,-46,-52,-47,-79,-68,-82,-64,-60,-42,-90,-94,-89,-89,-88,-79,-71,-79,-73,-74,-70,-68,-94,-43,-81,-66,-146,-161,-163,-163,-281,-269,-290,-245,-391,-385,-393,-334,-502,-477,-725,-687,-690,-661,-608,-334,-335,-335,-1401,-1374,-1578,-1602,-1520,-1485,-1590,-1553,-3018,-2686,-29986,-29987,-29987,-29983,-29988,-29984]} 1. e4 {[%emt 1:41:00]} e5 {[%emt 0:01:54]} 2. Nf3 {[%emt 0:00:00]} Nc6 {[%emt 0:00:11]} 3. Bc4 {[%emt 0:00:00]} Nf6 {[%emt 0:00:05]} 4. d3 {[%emt 0:00:00]} h6 {[%emt 0:00:06]} 5. O-O {[%emt 0:00:00]} d6 {[%emt 0:00:04]} 6. c3 {[%emt 0:00:00]} g5 $1 {[%emt 0:00:05][%mdl 4] now scores much better than the old 6...g6. C55: Two Knights: 4 d3, 4 d4 exd4 5 e5 and Max Lange Attack.} 7. Nbd2 {[%emt 0:00:00]} Bg7 {[%emt 0:00:08]} 8. Bb3 {[%emt 0:00:00]} a5 {[%emt 0:00:06] The position is equal.} 9. a4 {[%emt 0:00:00] [#]} Nh5 $146 {[%emt 0:00:36]} ({Predecessor:} 9... Qe7 10. Nc4 Be6 11. Ne3 Qd7 12. Re1 d5 13. exd5 Nxd5 14. Nxd5 Bxd5 15. Nxe5 Bxe5 {½-½ (76) Ragger,M (2670)-Shankland,S (2683) Prague 2020}) 10. Nc4 {[%emt 0:00:00][%cal Of3e5] Black should prevent Nfxe5!} Nf4 {[%emt 0:01:27]} 11. Ne3 {[%emt 0:00:00]} Qf6 {[%emt 0:08:31]} 12. Nd5 {[%emt 0:00:00]} (12. d4 $11) 12... Nxd5 $15 {[%emt 0:01:05]} 13. exd5 {[%emt 0:00:00]} Ne7 {[%emt 0:06:26]} 14. Nd2 {[%emt 0:00:00]} Qg6 {[%emt 0:04:23]} 15. Qe2 {[%emt 0:00:00][%cal Od3d4]} Bf5 {[%emt 0:01:16]} 16. Ne4 {[%emt 0:00:00]} O-O {[%emt 0:00:47]} 17. Bd2 {[%emt 0:00:00]} Bd7 {[%emt 0:02:34]} 18. f3 {[%emt 0:00:00]} (18. Ng3 $1 $15) 18... f5 $17 {[%emt 0:11:16]} 19. Nf2 {[%emt 0:00:00]} Qf7 {[%emt 0:04:09]} 20. c4 {[%emt 0:00:00]} Ng6 {[%emt 0:01:26]} 21. Bc3 {[%emt 0:00:00]} b6 {[%emt 0:09:01]} 22. Qd2 {[%emt 0:00:00]} Nf4 {[%emt 0:09:03]} 23. Rae1 {[%emt 0:00:00]} Rae8 {[%emt 0:00:51]} 24. Bc2 {[%emt 0:00:00]} Bf6 {[%emt 0:00:31] Black is more active.} (24... c6 $17 25. g3 Ng6) 25. g3 {[%emt 0:00:00]} Ng6 {[%emt 0:01:15] White is on the road to losing.} 26. d4 {[%emt 0:00:00]} (26. Kh1 $15) 26... Qg7 {[%emt 0:02:49][%cal Re5d4]} 27. b3 {[%emt 0:00:00]} exd4 {[%emt 0:03:01]} 28. Ba1 {[%emt 0:00:00]} (28. Bb2 {was necessary.}) 28... Re3 $19 {[%emt 0:07:31]} 29. Nd1 {[%emt 0:00:00]} Rxe1 {[%emt 0:03:32]} 30. Rxe1 {[%emt 0:00:00]} (30. Qxe1 {was the only defense.} Re8 31. Qd2) 30... Ne5 {[%emt 0:00:42]} 31. Rf1 {[%emt 0:00:00]} c5 {[%emt 0:02:54]} 32. Nb2 {[%emt 0:06:43]} (32. Bb2 $142) 32... g4 {[%emt 0:04:31][%cal Bg5g4,Bg4f3][%mdl 32]} 33. f4 {[%emt 0:04:14]} (33. fxg4 $142 Bg5 34. Qe2 Nxg4 35. Nd1) 33... Nf3+ {[%emt 0:01:27]} 34. Rxf3 {[%emt 0:00:04]} gxf3 {[%emt 0:00:04]} 35. Nd3 {[%emt 0:02:25]} Qe7 {[%emt 0:03:37] [#] ...Re8 is the strong threat.} 36. Bd1 {[%emt 0:00:53]} Re8 {[%emt 0:07:43][%cal Bf8e8,Be8e3,Be3e2][%mdl 32] And now ...Qe3+ would win.} ({Don't go for} 36... Qe4 $2 37. Bb2 $19) 37. Bb2 $2 {[%emt 0:02:13]} (37. Kf1) 37... Qe3+ {[%emt 0:02:44]} 38. Qxe3 {[%emt 0:00:07]} Rxe3 {[%emt 0:04:14]} 39. Bc2 {[%emt 0:00:13]} Re2 {[%emt 0:00:21]} 40. Bb1 {[%emt 0:00:34]} h5 {[%emt 0:03:14][%cal Bh6h5,Bh5h4,Bh4g3][%mdl 32] [#] Strongly threatening ...h4.} 41. Bc1 {[%emt 0:03:35]} h4 {[%emt 0:00:01]} 42. Kf1 {[%emt 0:07:44]} Rxh2 {[%emt 0:00:07] Black mates.} 43. Ne1 {[%emt 0:00:00]} Rh1+ {[%emt 0:00:19]} 44. Kf2 {[%emt 0:00:00]} hxg3+ {[%emt 0:53:53] Weighted Error Value: White=0.75/Black=0.15 (very precise)} 0-1

[Event "Italian-ch Women 2022"]
[Site "Cagliari"]
[Date "2022.11.21"]
[Round "5.2"]
[White "Sedina, Elena"]
[Black "Martinelli, Valeria"]
[Result "0-1"]
[ECO "C43"]
[WhiteElo "2197"]
[BlackElo "2008"]
[Annotator "TA"]
[PlyCount "56"]
[EventDate "2022.11.17"]
[EventType "tourn"]
[EventCountry "ITA"]
[SourceTitle "playchess.com"]
[Source "ChessBase"]
[SourceQuality "1"]
[TimeControl "40/6000+30:20/3000:900+30"]

{[%evp 14,56,0,0,25,30,50,33,46,48,46,43,60,50,60,78,67,23,25,0,53,-105,-29,-93,-41,-52,-43,-131,-48,-32,0,-78,-39,-278,-261,-274,-270,-262,-241,-357,-375,-699,-680,-29996,-29997]} 1. e4 {[%emt 0:00:58]} e5 {[%emt 0:00:05]} 2. Nf3 {[%emt 0:00:10]} Nf6 {[%emt 0:00:08]} 3. d4 {[%emt 0:03:04]} Nxe4 {[%emt 0:01:31]} 4. Bd3 {[%emt 0:00:09]} d5 {[%emt 0:00:54]} 5. Nxe5 {[%emt 0:00:51]} Nd7 {[%emt 0:16:13]} 6. Nc3 {[%emt 0:02:34]} Nxe5 {[%emt 0:01:26] 6...Nxc3 gains popularity.} 7. dxe5 {[%emt 0:00:06]} Nxc3 {[%emt 0:00:27]} 8. bxc3 {[%emt 0:00:06] [#]} Qe7 $146 {[%emt 0:10:28] C43: Petroff Defence: 3 d4.} ({Predecessor:} 8... Be7 9. O-O O-O 10. f4 f5 11. Be3 c6 12. a4 b6 13. Kh1 Be6 14. Be2 Bc5 15. Bd4 Qe7 16. Qd2 Kh8 17. Qe3 {½-½ (36) Sevian,S (2684)-Nyzhnyk,I (2686) Chess.com INT 2022}) 9. O-O {[%emt 0:02:22]} Bd7 {[%emt 0:00:10]} 10. a4 {[%emt 0:39:02]} (10. Rb1 $5 {[%cal Rb1b7]}) 10... Qe6 {[%emt 0:15:13] White is slightly better.} 11. Be3 {[%emt 0:02:59]} Be7 {[%emt 0:20:23]} 12. f4 {[%emt 0:03:49]} f5 {[%emt 0:01:46]} 13. Be2 {[%emt 0:09:34]} c5 {[%emt 0:10:31]} 14. Bf3 {[%emt 0:06:22]} Bc6 {[%emt 0:00:09]} 15. Rf2 {[%emt 0:00:19]} O-O-O {[%emt 0:01:38]} 16. Rd2 {[%emt 0:11:14]} h6 {[%emt 0:00:41]} (16... g5 $11) 17. g4 $2 {[%emt 0:02:18] [#]} (17. Qe1 $14 {keeps the upper hand.}) 17... g6 {[%emt 0:01:22]} ({Black should play} 17... Rhf8 $1 $17) 18. h3 {[%emt 0:02:34]} (18. gxf5 $11 {remains equal.} gxf5 19. Kh1) 18... Rhg8 {[%emt 0:00:55]} (18... Kb8 $17 19. Qe2 g5) 19. Kh2 {[%emt 0:02:47]} h5 {[%emt 0:04:08]} 20. gxf5 {[%emt 0:08:16]} (20. gxh5 $15 gxh5 21. Qf1 (21. Bxh5 $2 d4 $19)) 20... gxf5 {[%emt 0:00:06]} ({Black should try} 20... Qxf5 $17 {And now ...g5 would win.} 21. Rxd5 g5 22. Rxd8+ Rxd8) 21. Qf1 $15 {[%emt 0:03:23]} (21. Bxh5 d4 22. cxd4 cxd4 23. Bxd4 Qh6 $19) 21... Bh4 {[%emt 0:03:20] [#] Against Qf2. Hoping for ...Bg3+.} ({Of course not} 21... Qg6 22. Rg2 Qe6 23. Rd1 $14 (23. Bxh5 $2 Rxg2+ 24. Qxg2 d4 $19)) 22. Rg2 {[%emt 0:04:48] Inhibits Bg3+.} ({Reject} 22. Bxc5 Bg3+ 23. Kh1 Bxf4 $17) (22. Rad1 $1 $11 {keeps the balance.}) 22... d4 {[%emt 0:08:23]} 23. cxd4 {[%emt 0:00:04] Loses the game.} (23. Bxc6 $1 $15 dxe3 24. Rxg8 Rxg8 25. Bf3) 23... cxd4 $19 {[%emt 0:00:07]} 24. Bd2 {[%emt 0:03:26]} Rxg2+ {[%emt 0:01:11]} 25. Qxg2 {[%emt 0:01:05]} Rg8 {[%emt 0:00:07]} 26. Qe2 {[%emt 0:00:27]} (26. Qf1 {is the only way for White.} Bg3+ 27. Kh1) 26... Qg6 {[%emt 0:00:52] ( -> ...Qg3+)} 27. Bxc6 $2 {[%emt 0:00:35]} (27. Kh1 Be4 28. Bxe4 fxe4 29. f5) 27... Bg3+ {[%emt 0:00:37]} ({Weaker is} 27... bxc6 28. Kh1 $11) (27... Qxc6 28. Be1 Bd8 29. Ra3 $11) 28. Kg1 {[%emt 0:00:36]} Bf2+ {[%emt 0:00:43] Weighted Error Value: White=0.83/Black=0.25 (precise)} 0-1

[Event "Italian-ch Women 2022"]
[Site "Cagliari"]
[Date "2022.11.21"]
[Round "5.3"]
[White "Maione, Melissa"]
[Black "Gabbani, Sara"]
[Result "1/2-1/2"]
[ECO "C48"]
[WhiteElo "1928"]
[BlackElo "1844"]
[Annotator "TA"]
[PlyCount "62"]
[EventDate "2022.11.17"]
[EventType "tourn"]
[EventCountry "ITA"]
[SourceTitle "playchess.com"]
[Source "ChessBase"]
[SourceQuality "1"]
[TimeControl "40/6000+30:20/3000:900+30"]

{[%evp 9,62,12,36,0,0,-3,-4,-17,9,-1,5,0,0,0,6,0,0,-7,-4,-11,-6,-16,-1,-11,-13,-27,0,0,4,-15,6,0,-7,0,0,0,0,0,0,0,13,10,10,5,6,0,0,0,0,0,0,0,0,0,0]} 1. e4 {[%emt 0:00:07]} e5 {[%emt 0:01:14]} 2. Nf3 {[%emt 0:00:08]} Nf6 {[%emt 0:00:24]} 3. Nc3 {[%emt 0:01:58]} Nc6 {[%emt 0:01:12]} 4. Bb5 {[%emt 0:01:42]} Nd4 {[%emt 0:00:18]} 5. Bc4 {[%emt 0:03:45]} Bc5 {[%emt 0:01:23]} 6. O-O {[%emt 0:01:38] C48: Four Knights: 4 Bb5, replies other than 4...Bb4.} (6. Nxe5 {keeps more tension.} Qe7 7. Nf3 d5 8. Bxd5 Nxd5 9. Nxd4 Nxc3 10. dxc3 Qxe4+ 11. Qe2) 6... d6 {[%emt 0:07:14]} 7. h3 {[%emt 0:03:12]} O-O {[%emt 0:02:03]} 8. d3 {[%emt 0:03:05]} a6 {[%emt 0:07:53]} 9. a4 {[%emt 0:02:54]} h6 {[%emt 0:01:27] [#]} 10. Nd5 $146 {[%emt 0:10:08]} ({Predecessor:} 10. Nxd4 Bxd4 11. Ne2 Ba7 12. Ng3 c6 13. Qe2 d5 14. Bb3 Re8 15. Be3 Bxe3 16. fxe3 {½-½ (27) Smagin,S (2551)-Lysyj,I (2596) Sochi 2019}) 10... Nxd5 {[%emt 0:07:29]} 11. Bxd5 {[%emt 0:01:08]} c6 {[%emt 0:01:19]} 12. Ba2 {[%emt 0:00:21]} Qf6 {[%emt 0:07:42]} 13. Nxd4 {[%emt 0:04:04]} Bxd4 {[%emt 0:00:31]} 14. c3 {[%emt 0:03:58]} Ba7 {[%emt 0:02:35]} 15. Kh2 {[%emt 0:03:26]} Be6 {[%emt 0:02:13]} (15... Bxf2 16. Qe2) (15... Bxf2 $2 16. Qe2 $18) 16. f4 {[%emt 0:02:00]} Bxa2 {[%emt 0:01:28]} 17. Rxa2 {[%emt 0:00:14][%cal Ba1a2,Ba2e2,Be2e4][%mdl 32]} Qe6 {[%emt 0:01:43]} 18. b3 {[%emt 0:03:03] The position is equal.} f5 {[%emt 0:05:34]} 19. Re2 {[%emt 0:02:15][%cal Og2g4]} Rae8 {[%emt 0:03:14]} 20. fxe5 {[%emt 0:07:08]} dxe5 {[%emt 0:02:48]} 21. exf5 {[%emt 0:01:33]} Rxf5 {[%emt 0:01:03]} 22. Rxf5 {[%emt 0:00:50]} Qxf5 {[%emt 0:00:05]} 23. Re4 {[%emt 0:01:15]} Rd8 {[%emt 0:05:17] [#] And now ...Qxe4 would win.} 24. Qe2 {[%emt 0:02:51]} Kh8 {[%emt 0:09:42]} 25. Be3 {[%emt 0:03:00]} Bxe3 {[%emt 0:04:41]} 26. Qxe3 $11 {[%emt 0:00:32][%mdl 4096] Endgame KQR-KQR} Qd7 {[%emt 0:00:36]} 27. d4 {[%emt 0:02:08]} exd4 {[%emt 0:00:10]} 28. Rxd4 {[%emt 0:00:13]} Qc7+ {[%emt 0:00:11]} 29. Kh1 {[%emt 0:00:29]} Rxd4 {[%emt 0:00:22]} 30. Qxd4 {[%emt 0:00:09]} Qa5 {[%emt 0:04:07]} 31. Qe3 {[%emt 0:04:21]} Qd5 {[%emt 0:01:32] An even fight not without its subleties.   Weighted Error Value: White=0.06 (flawless) /Black=0.05 (flawless)} 1/2-1/2

[Event "Italian-ch Women 2022"]
[Site "Cagliari"]
[Date "2022.11.21"]
[Round "5.4"]
[White "Cassi, Elisa"]
[Black "Brunello, Marina"]
[Result "0-1"]
[ECO "B92"]
[WhiteElo "1995"]
[BlackElo "2337"]
[Annotator "TA"]
[PlyCount "118"]
[EventDate "2022.11.17"]
[EventType "tourn"]
[EventCountry "ITA"]
[SourceTitle "playchess.com"]
[Source "ChessBase"]
[SourceQuality "1"]
[TimeControl "40/6000+30:20/3000:900+30"]

{[%evp 16,118,18,13,10,4,3,8,13,0,28,0,5,12,30,0,0,0,0,-13,15,-22,0,-3,-1,-25,-34,-30,-2,-6,0,0,17,0,0,0,0,0,0,-7,-9,-7,0,-12,-6,-8,0,-42,-34,-85,-85,-87,-92,-85,-94,-153,-157,-162,-160,-170,-167,-153,-148,-137,-102,-140,-106,-64,-60,-80,-83,-109,-32,-32,-31,-102,-106,-134,-137,-189,-66,-66,-43,-46,-66,-296,-296,-404,-398,-383,-383,-383,-370,-350,-314,-456,-468,-775,-772,-689,-658,-1338,-1207,-748,-670]} 1. e4 {[%emt 0:00:03]} c5 {[%emt 0:01:13]} 2. Nf3 {[%emt 0:00:06]} d6 {[%emt 1:40:17]} 3. d4 {[%emt 0:00:05]} cxd4 {[%emt 0:00:00]} 4. Nxd4 {[%emt 0:00:05]} Nf6 {[%emt 0:00:00]} 5. Nc3 {[%emt 0:00:03]} a6 {[%emt 0:00:00]} 6. Be2 {[%emt 0:00:17]} e5 {[%emt 0:00:00]} 7. Nb3 {[%emt 0:00:04]} Be7 {[%emt 0:00:00]} 8. O-O {[%emt 0:00:23]} O-O {[%emt 0:00:00]} 9. Re1 {[%emt 0:00:06]} Be6 {[%emt 0:00:00] B92: Sicilian Najdorf: 6 Be2.} 10. Bf3 {[%emt 0:00:07]} Nbd7 {[%emt 0:00:00]} 11. a4 {[%emt 0:00:13][%cal Ba2a4,Ba4a5][%mdl 32]} Rb8 {[%emt 0:00:00] The position is equal.} 12. a5 {[%emt 0:02:40]} Qc7 {[%emt 0:00:00]} 13. Be3 {[%emt 0:00:39]} Rfc8 {[%emt 0:00:00]} 14. Nd2 {[%emt 0:03:01][%cal Bb3d2,Bd2f1,Bf1g3][%mdl 32] [#]} Ra8 $146 {[%emt 0:00:00]} ({Predecessor:} 14... b5 15. axb6 Nxb6 16. Rxa6 Nc4 17. Nxc4 Qxc4 18. Ra4 Qc6 19. Qa1 Bd8 20. Rc1 h6 {1-0 (49) Rudolf,A (2352)-Cao Armillas,J (2174) Madrid 2011}) 15. Nf1 {[%emt 0:14:44]} b5 {[%emt 0:00:00]} 16. axb6 {[%emt 0:00:19]} Nxb6 {[%emt 0:00:00][%cal Bd7b6,Bb6c4,Bc4e3][%mdl 32]} 17. Ng3 {[%emt 0:02:55]} Bf8 {[%emt 0:00:00]} 18. Re2 {[%emt 0:08:36]} Qb7 {[%emt 0:00:00]} 19. Bg5 {[%emt 0:09:10]} Ne8 {[%emt 0:00:00]} 20. h4 {[%emt 0:12:14][%cal Bh2h4,Bh4h5][%mdl 32]} a5 {[%emt 0:00:00]} 21. Be3 {[%emt 0:03:27]} Nc4 {[%emt 0:00:00]} 22. b3 {[%emt 0:01:00]} Nxe3 {[%emt 0:00:00]} 23. Rxe3 {[%emt 0:00:03][%cal Be2e3,Be3d3,Bd3f3][%mdl 32]} g6 {[%emt 0:00:00]} 24. h5 {[%emt 0:07:34]} Nf6 {[%emt 0:00:00][%cal Be8f6,Bf6d7,Bd7c5,Bc5e4,Be4d2][%mdl 32]} 25. Rd3 {[%emt 0:03:13]} Qc7 {[%emt 0:00:00]} 26. Ra2 {[%emt 0:03:16]} Qb6 {[%emt 0:00:00]} 27. Qd2 {[%emt 0:02:40]} Nd7 {[%emt 0:00:00]} 28. hxg6 {[%emt 0:09:57]} hxg6 {[%emt 0:00:00]} 29. Be2 {[%emt 0:03:31]} Nc5 {[%emt 0:00:00]} 30. Rf3 {[%emt 0:00:18]} Bg7 {[%emt 0:00:00]} 31. Nf1 {[%emt 0:04:06]} Qc6 {[%emt 0:01:32]} 32. Bb5 {[%emt 0:07:04] Prevents a4.} (32. Ne3 $15) 32... Nxe4 $17 {[%emt 0:02:48]} 33. Bxc6 {[%emt 0:00:32]} Nxd2 {[%emt 0:00:05]} 34. Bxa8 {[%emt 0:04:27]} Nxf3+ {[%emt 0:00:05]} 35. Bxf3 {[%emt 0:00:06]} (35. gxf3 $142 Rxc3 36. Ne3) 35... Rxc3 {[%emt 0:00:03]} 36. Rxa5 {[%emt 0:01:25]} Rxc2 {[%emt 0:00:08]} 37. Bd5 {[%emt 0:00:52]} Bxd5 {[%emt 0:03:42]} 38. Rxd5 $19 {[%emt 0:00:14][%mdl 4096] Endgame KRB-KRN} Rc6 {[%emt 0:00:04]} 39. b4 {[%emt 0:01:37]} Bf8 {[%emt 0:02:09]} 40. Nd2 {[%emt 0:03:49]} f5 {[%emt 0:03:04]} 41. b5 {[%emt 0:49:42]} Rc8 {[%emt 0:49:53]} 42. b6 {[%emt 0:00:00] [#]} Kf7 $1 {[%emt 0:00:00]} 43. Ra5 {[%emt 0:00:00] [#]} Rb8 {[%emt 0:00:00]} (43... Be7 $1 $17 44. Ra7 Ke6) 44. Nc4 $1 $15 {[%emt 0:00:00]} Ke6 {[%emt 0:00:00]} 45. Rb5 {[%emt 0:00:00]} (45. Ra6 $1 $15) 45... Be7 $17 {[%emt 0:00:00]} 46. Kf1 {[%emt 0:00:00]} ({But not} 46. b7 $2 Bd8 47. g4 fxg4 $19) 46... Bd8 {[%emt 0:00:00]} ({Not} 46... d5 47. Ne3 $15) 47. Ke2 {[%emt 0:00:00]} (47. g3 $17) 47... f4 {[%emt 0:00:00]} (47... Rb7 $19 48. Ra5 d5) 48. b7 $15 {[%emt 0:00:00]} Bc7 {[%emt 0:00:00] Strongly threatening ...Kd7.} 49. Kd3 $1 {[%emt 0:00:00]} Kd7 {[%emt 0:00:00] Threatens to win with ...Kc6.} 50. Nd2 $2 {[%emt 0:00:00] This costs White the game.} ({White should try} 50. Rb1 $15) 50... Kc6 $19 {[%emt 0:00:00][%csl LRb5,LRb7]} 51. Kc4 {[%emt 0:00:00]} Bb6 {[%emt 0:00:00]} 52. Ne4 {[%emt 0:00:00][%cal Oe4d6]} Rxb7 {[%emt 0:00:00]} 53. Rd5 {[%emt 0:00:00]} Bc7 {[%emt 0:00:00]} 54. Rd2 {[%emt 0:00:00]} Rb1 {[%emt 0:00:00][%cal Od6d5] Hoping for ...d5+!} 55. Nf6 {[%emt 0:00:00] Inhibits d5+.} (55. Rc2 {is a better defense.}) 55... Bd8 {[%emt 0:00:00] Black is clearly winning.} 56. Nd5 {[%emt 0:00:00]} (56. Ng4 $142 d5+ 57. Kc3 Ba5+ 58. Kc2 Bxd2 59. Kxb1) 56... Rc1+ {[%emt 0:00:00]} 57. Kb3 {[%emt 0:00:00]} Ba5 {[%emt 0:00:00]} 58. Ra2 {[%emt 0:00:00]} Kxd5 {[%emt 0:00:00]} 59. Rxa5+ {[%emt 0:00:00]} Ke6 {[%emt 0:00:00] Weighted Error Value: White=0.36/Black=0.10 (very precise)} 0-1